bitfinex-derivatives/quotes_BTCF0:USTF0_20241013
["timestamp","ask_amount","ask_price","bid_price","bid_amount"]
[1728856997762,0.3608,63056.0,63053.0,0.079317]
[1728856997967,0.079312,63058.0,63053.0,0.079317]
[1728856998165,0.079312,63058.0,63054.0,0.110016]
[1728856998772,0.079312,63058.0,63055.0,0.079315]
[1728856999161,0.00237908,63062.0,63056.0,0.16]
[1728856999162,0.079308,63061.0,63056.0,0.16]
[1728856999368,0.00237908,63062.0,63060.0,0.079309]
[1728856999572,0.00237908,63062.0,63056.0,0.16]
[1728856999770,0.00237908,63062.0,63054.0,0.0307]
[1728856999966,0.00237908,63062.0,63053.0,0.001]
[1728856999967,0.239315,63055.0,63053.0,0.001]
[1728857000171,0.239315,63055.0,63053.0,0.002]
[1728857000670,0.079315,63055.0,63053.0,0.001]
[1728857000862,0.079309,63060.0,63054.0,0.16]
[1728857001059,0.079309,63060.0,63055.0,0.0301]
[1728857002568,0.239309,63060.0,63055.0,0.0301]
[1728857002976,0.079315,63055.0,63054.0,0.003]
[1728857003660,0.42504,63061.0,63049.0,0.112322]
[1728857003661,0.36164,63061.0,63049.0,0.193]
[1728857003869,0.16,63057.0,63049.0,0.112322]
[1728857004071,0.079321,63051.0,63049.0,0.033]
[1728857004568,0.079321,63051.0,63049.0,0.0646]
[1728857006864,0.079321,63051.0,63049.0,0.0716]
[1728857007073,0.079321,63051.0,63049.0,0.0756]
[1728857007467,0.16,63057.0,63049.0,0.154923]
[1728857007770,0.079315,63055.0,63049.0,0.154923]
[1728857007966,0.3608,63061.0,63049.0,0.0756]
[1728857008171,0.16607908,63062.0,63049.0,0.0756]
[1728857008172,0.00607908,63062.0,63061.0,0.079308]
[1728857008474,0.00237908,63062.0,63061.0,0.079308]
[1728857009576,0.00237908,63062.0,63061.0,0.239308]
[1728857010073,0.00237908,63062.0,63061.0,0.079308]
[1728857010476,0.00237908,63062.0,63061.0,0.001]
[1728857010776,0.08168708,63062.0,63061.0,0.001]
[1728857011567,0.08168708,63062.0,63061.0,0.080308]
[1728857012782,0.00237908,63062.0,63061.0,0.080308]
[1728857013677,0.0037,63070.0,63061.0,0.161]
[1728857013882,0.079302,63066.0,63062.0,0.0315]
[1728857014072,0.079302,63066.0,63062.0,0.110806]
[1728857014482,0.16,63071.0,63067.0,0.0793]
[1728857014674,0.079299,63069.0,63063.0,0.0632]
[1728857015177,0.079302,63066.0,63063.0,0.0632]
[1728857015567,0.079302,63066.0,63064.0,0.079304]
[1728857015772,0.0037,63073.0,63064.0,0.079304]
[1728857015773,0.079303,63065.0,63064.0,0.079304]
[1728857016180,0.0037,63073.0,63064.0,0.16]
[1728857016380,0.079272,63090.0,63084.0,0.079278]
[1728857016575,0.079271,63090.0,63088.0,0.079273]
[1728857016969,0.079268,63093.0,63089.0,0.079272]
[1728857017170,0.079268,63093.0,63083.0,0.16]
[1728857017171,0.16,63101.0,63088.0,0.16]
[1728857017469,0.07926,63100.0,63097.0,0.079261]
[1728857017772,0.5208,63104.0,63099.0,0.07926]
[1728857018083,0.16,63100.0,63091.0,0.0074]
[1728857018285,0.16,63096.0,63090.0,0.3608]
[1728857018469,0.079271,63090.0,63089.0,0.001]
[1728857018789,0.079268,63093.0,63089.0,0.001]
[1728857018972,0.079268,63093.0,63090.0,0.079271]
[1728857019374,0.079269,63092.0,63090.0,0.079271]
[1728857019677,0.079269,63092.0,63088.0,0.16]
[1728857019678,0.079272,63089.0,63088.0,0.16]
[1728857019879,0.079273,63089.0,63088.0,0.16]
[1728857021380,0.079273,63089.0,63088.0,0.162]
[1728857021577,0.079273,63089.0,63088.0,0.241274]
[1728857023184,0.3608,63096.0,63088.0,0.162]
[1728857023480,0.079267,63093.0,63092.0,0.16]
[1728857023679,0.079267,63093.0,63092.0,0.239269]
[1728857024977,0.079267,63093.0,63092.0,0.16]
[1728857025182,0.079272,63089.0,63088.0,0.002]
[1728857025389,0.079272,63089.0,63088.0,0.241274]
[1728857026386,0.440068,63093.0,63091.0,0.079269]
[1728857026687,0.440068,63093.0,63092.0,0.162]
[1728857027083,0.440068,63093.0,63092.0,0.161]
[1728857027483,0.440068,63093.0,63092.0,0.16]
[1728857027880,0.079268,63093.0,63092.0,0.161]
[1728857028782,0.079268,63093.0,63092.0,0.240269]
[1728857028990,0.440068,63093.0,63092.0,0.001]
[1728857029383,0.440068,63093.0,63092.0,0.002]
[1728857031285,0.440068,63093.0,63092.0,0.001]
[1728857032279,0.079268,63093.0,63092.0,0.001]
[1728857032489,0.440068,63093.0,63092.0,0.001]
[1728857032790,0.3608,63093.0,63092.0,0.080269]
[1728857033575,0.3608,63093.0,63092.0,0.082269]
[1728857034079,0.3608,63093.0,63092.0,0.083269]
[1728857034293,0.3608,63099.0,63094.0,0.079266]
[1728857034480,0.3608,63099.0,63098.0,0.239261]
[1728857034886,0.3608,63099.0,63098.0,0.079261]
[1728857035096,0.44006,63099.0,63098.0,0.079261]
[1728857035486,0.079264,63096.0,63095.0,0.079263]
[1728857037093,0.3608,63099.0,63098.0,0.079261]
[1728857037389,0.3608,63099.0,63095.0,0.080264]
[1728857037985,0.079247,63110.0,63109.0,0.079246]
[1728857038193,0.440035,63120.0,63096.0,0.3608]
[1728857038194,0.109646,63111.0,63107.0,0.16]
[1728857038396,0.109646,63111.0,63110.0,0.239246]
[1728857038397,0.0304,63111.0,63110.0,0.239246]
[1728857038590,0.110542,63114.0,63110.0,0.239246]
[1728857039095,0.3608,63120.0,63111.0,0.63536]
[1728857039291,0.07919,63155.0,63132.0,0.079218]
[1728857039292,0.079217,63134.0,63132.0,0.079218]
[1728857039594,0.3645,63148.0,63140.0,0.079208]
[1728857039595,0.079206,63143.0,63140.0,0.079208]
[1728857039895,0.079206,63142.0,63141.0,0.16]
[1728857040098,0.3608,63148.0,63139.0,0.3608]
[1728857040293,0.3608,63148.0,63133.0,0.3608]
[1728857040294,0.16,63142.0,63133.0,0.3608]
[1728857040599,0.3608,63148.0,63133.0,0.3608]
[1728857040600,0.239216,63134.0,63133.0,0.3608]
[1728857040987,0.079216,63134.0,63133.0,0.3608]
[1728857041201,0.239216,63134.0,63133.0,0.3608]
[1728857041387,0.239216,63134.0,63132.0,0.079218]
[1728857041388,0.079217,63133.0,63132.0,0.079218]
[1728857041589,0.079231,63122.0,63119.0,0.3608]
[1728857041793,0.079243,63113.0,63110.0,0.001]
[1728857041987,0.079244,63112.0,63110.0,0.001]
[1728857042185,0.16,63115.0,63110.0,0.001]
[1728857042388,0.16,63115.0,63109.0,0.3608]
[1728857042389,0.079245,63111.0,63109.0,0.3608]
[1728857043194,0.079239,63116.0,63112.0,0.079242]
[1728857043393,0.079239,63116.0,63110.0,0.014]
[1728857043394,0.239239,63116.0,63115.0,0.3608]
[1728857043798,0.079239,63116.0,63115.0,0.3608]
[1728857043983,0.079239,63116.0,63109.0,0.452967]
[1728857044186,0.079246,63110.0,63109.0,0.3798]
[1728857044784,0.111346,63110.0,63109.0,0.011]
[1728857045500,0.079246,63110.0,63109.0,0.019]
[1728857046000,0.079246,63110.0,63109.0,0.008]
[1728857046702,0.079242,63113.0,63109.0,0.093247]
[1728857047193,0.25,63114.0,63110.0,0.079246]
[1728857047385,0.25,63114.0,63109.0,0.013]
[1728857047591,0.25,63114.0,63113.0,0.079242]
[1728857047788,0.329241,63114.0,63113.0,0.079242]
[1728857048088,0.329241,63114.0,63109.0,0.009]
[1728857048089,0.079245,63111.0,63109.0,0.009]
[1728857048291,0.25,63110.0,63109.0,0.006]
[1728857049599,0.329246,63110.0,63109.0,0.006]
[1728857050093,0.329246,63110.0,63109.0,0.005]
[1728857050395,0.329246,63110.0,63109.0,0.011]
[1728857050591,0.25,63114.0,63113.0,0.079242]
[1728857050791,0.0008,63121.0,63120.0,0.079234]
[1728857050989,0.25,63121.0,63120.0,0.440034]
[1728857051199,0.25,63126.0,63124.0,0.079228]
[1728857051795,0.25,63126.0,63125.0,0.079227]
[1728857052801,0.0037,63135.0,63127.0,0.079225]
[1728857052802,0.079219,63132.0,63127.0,0.079225]
[1728857052999,0.0037,63135.0,63127.0,0.079225]
[1728857053000,0.25,63134.0,63127.0,0.079225]
[1728857053191,0.3919,63136.0,63127.0,0.079225]
[1728857053192,0.25,63129.0,63127.0,0.079225]
[1728857053602,0.329222,63129.0,63127.0,0.079225]
[1728857053994,0.08159991,63128.0,63127.0,0.079225]
[1728857054201,0.00237691,63128.0,63127.0,0.079225]
[1728857054501,1e-08,63128.0,63127.0,0.081225]
[1728857054803,1e-08,63128.0,63127.0,0.079225]
[1728857055504,0.0037,63139.0,63126.0,0.3608]
[1728857055707,0.0612,63143.0,63128.0,0.079223]
[1728857055708,0.079221,63130.0,63128.0,0.079223]
[1728857055895,0.079221,63130.0,63126.0,0.3608]
[1728857055896,0.079221,63130.0,63129.0,0.079222]
[1728857057303,0.079221,63130.0,63129.0,0.081222]
[1728857057704,0.079221,63130.0,63129.0,0.079222]
[1728857058408,0.079221,63130.0,63129.0,0.158444]
[1728857059009,0.079221,63130.0,63129.0,0.163444]
[1728857059307,0.079221,63130.0,63129.0,0.084222]
[1728857059808,0.079221,63130.0,63129.0,0.081222]
[1728857061106,0.0037,63140.0,63136.0,0.079212]
[1728857061107,0.079212,63138.0,63136.0,0.079212]
[1728857061415,0.00237604,63145.0,63135.0,0.25]
[1728857061416,0.08157904,63145.0,63135.0,0.25]
[1728857061597,0.08157904,63145.0,63139.0,0.25]
[1728857061798,0.08157904,63145.0,63143.0,0.079205]
[1728857062398,0.440005,63144.0,63140.0,0.079208]
[1728857062599,0.440005,63144.0,63136.0,0.005]
[1728857062806,0.0037,63151.0,63144.0,0.079203]
[1728857063007,0.0037,63151.0,63143.0,0.25]
[1728857063008,0.079195,63151.0,63148.0,0.079198]
[1728857063215,0.0037,63159.0,63148.0,0.25]
[1728857063510,0.0037,63159.0,63138.0,0.07921]
[1728857063511,0.25,63160.0,63157.0,0.3608]
[1728857063705,0.111685,63159.0,63157.0,0.3608]
[1728857064210,0.079178,63165.0,63157.0,0.5208]
[1728857064504,0.07918,63163.0,63157.0,0.5208]
[1728857065305,0.07918,63163.0,63162.0,0.16]
[1728857065907,0.07918,63163.0,63159.0,0.329184]
[1728857066203,0.0037,63171.0,63159.0,0.25]
[1728857066404,0.00237519,63172.0,63165.0,0.3608]
[1728857066605,0.079176,63166.0,63165.0,0.3608]
[1728857067407,0.00237519,63172.0,63165.0,0.3608]
[1728857067903,0.079172,63169.0,63165.0,0.3608]
[1728857068097,0.079172,63169.0,63165.0,0.7216]
[1728857068308,0.0302,63174.0,63168.0,0.079173]
[1728857068505,0.109366,63174.0,63168.0,0.079173]
[1728857068904,0.0302,63174.0,63165.0,0.72452]
[1728857069104,0.0302,63174.0,63165.0,0.7236]
[1728857069297,0.079175,63167.0,63165.0,0.3628]
[1728857069808,0.079175,63167.0,63165.0,0.3608]
[1728857070106,0.079175,63167.0,63165.0,0.7216]
[1728857070411,0.079175,63167.0,63165.0,0.7226]
[1728857070605,0.079175,63167.0,63165.0,0.3618]
[1728857070908,0.3608,63170.0,63165.0,0.3618]
[1728857071108,0.3608,63170.0,63165.0,0.7226]
[1728857071109,0.439971,63170.0,63165.0,0.7226]
[1728857071309,0.079175,63167.0,63165.0,0.7226]
[1728857071511,0.079175,63167.0,63165.0,0.7236]
[1728857075613,0.079175,63167.0,63165.0,0.7226]
[1728857075811,0.079175,63167.0,63165.0,0.7246]
[1728857076401,0.079175,63167.0,63165.0,0.7216]
[1728857076605,0.079175,63167.0,63165.0,0.7236]
[1728857077115,0.079175,63167.0,63165.0,0.7246]
[1728857077811,0.0302,63174.0,63165.0,0.7246]
[1728857078011,0.3608,63170.0,63165.0,0.3618]
[1728857078217,0.329176,63166.0,63165.0,0.3638]
[1728857078418,0.6108,63166.0,63156.0,0.0037]
[1728857078605,0.6108,63166.0,63150.0,0.3719]
[1728857078606,0.25,63161.0,63152.0,0.0037]
[1728857078804,0.0321,63165.0,63152.0,0.0037]
[1728857078805,0.079188,63157.0,63152.0,0.079193]
[1728857079204,0.079188,63157.0,63150.0,0.3608]
[1728857079205,0.0328,63160.0,63150.0,0.3608]
[1728857079407,0.079191,63155.0,63150.0,0.3608]
[1728857079705,0.0328,63160.0,63150.0,0.3608]
[1728857079706,0.079191,63154.0,63152.0,0.008]
[1728857079906,0.079191,63154.0,63152.0,0.012]
[1728857080105,0.079192,63153.0,63152.0,0.012]
[1728857081209,0.079192,63153.0,63152.0,0.004]
[1728857082224,0.079192,63153.0,63152.0,0.011]
[1728857082607,0.0328,63160.0,63152.0,0.011]
[1728857082814,0.079192,63153.0,63152.0,0.011]
[1728857083124,0.001,63153.0,63152.0,0.004]
[1728857083313,0.001,63153.0,63152.0,0.083193]
[1728857083619,0.002,63153.0,63152.0,0.079193]
[1728857084214,0.002,63153.0,63152.0,0.439993]
[1728857084215,0.001,63153.0,63152.0,0.439993]
[1728857084424,0.2537,63171.0,63152.0,0.439993]
[1728857084425,0.079176,63167.0,63161.0,0.079181]
[1728857084721,0.079176,63167.0,63164.0,0.3608]
[1728857086023,0.079177,63165.0,63164.0,0.3608]
[1728857086423,0.07918,63163.0,63159.0,0.079184]
[1728857086627,0.07918,63163.0,63160.0,0.079182]
[1728857088029,0.07918,63163.0,63161.0,0.079182]
[1728857088410,0.079173,63168.0,63163.0,0.079179]
[1728857088617,0.079173,63168.0,63166.0,0.3608]
[1728857088816,0.079173,63168.0,63166.0,0.439975]
[1728857089017,0.079169,63172.0,63167.0,0.079174]
[1728857089219,0.079169,63172.0,63166.0,0.3608]
[1728857089220,0.0332,63173.0,63166.0,0.3608]
[1728857089418,0.079175,63167.0,63166.0,0.3608]
[1728857089823,0.079169,63172.0,63166.0,0.3608]
[1728857090129,0.0332,63173.0,63168.0,0.079173]
[1728857090421,0.0332,63173.0,63166.0,0.3608]
[1728857090629,0.079172,63169.0,63166.0,0.3608]
[1728857090921,0.001,63167.0,63166.0,0.3608]
[1728857091320,0.079175,63167.0,63166.0,0.3608]
[1728857092317,0.079175,63167.0,63166.0,0.3628]
[1728857093329,0.001,63169.0,63166.0,0.441976]
[1728857093624,0.0332,63173.0,63166.0,0.441976]
[1728857093625,0.001,63167.0,63166.0,0.441976]
[1728857094620,0.001,63169.0,63167.0,0.079174]
[1728857094824,0.001,63169.0,63168.0,0.079173]
[1728857095926,0.079174,63168.0,63166.0,0.3628]
[1728857096115,0.079175,63167.0,63166.0,0.3628]
[1728857096320,0.240175,63167.0,63166.0,0.3628]
[1728857096520,0.240175,63167.0,63166.0,0.3608]
[1728857096822,0.079175,63167.0,63166.0,0.3608]
[1728857097720,0.080175,63167.0,63166.0,0.3608]
[1728857098022,0.080175,63167.0,63166.0,0.002]
[1728857099023,0.001,63167.0,63166.0,0.081176]
[1728857100729,0.080175,63167.0,63166.0,0.081176]
[1728857100923,0.080175,63167.0,63166.0,0.002]
[1728857101129,1.315095,63167.0,63166.0,0.002]
[1728857101721,0.715095,63167.0,63166.0,0.002]
[1728857102426,1.315095,63167.0,63166.0,0.002]
[1728857104829,1.315095,63167.0,63158.0,0.3608]
[1728857104830,0.079185,63159.0,63158.0,0.3608]
[1728857105019,0.239185,63159.0,63158.0,0.3608]
[1728857105221,0.239185,63159.0,63149.0,0.082897]
[1728857105420,0.079194,63152.0,63149.0,0.079197]
[1728857105731,0.079196,63151.0,63149.0,0.079197]
[1728857105938,0.07919,63155.0,63151.0,0.079195]
[1728857106421,0.079193,63152.0,63147.0,0.23542189]
[1728857106617,0.079193,63152.0,63149.0,0.079196]
[1728857106821,0.079193,63152.0,63149.0,0.093196]
[1728857107432,0.079193,63152.0,63151.0,0.014]
[1728857108218,0.00237528,63165.0,63151.0,0.014]
[1728857108425,0.08155228,63165.0,63163.0,0.079179]
[1728857108630,0.12703706,63164.0,63163.0,0.079179]
[1728857108936,0.12063966,63164.0,63163.0,0.079179]
[1728857109438,0.35981866,63164.0,63161.0,0.0331]
[1728857109627,0.15768651,63163.0,63161.0,0.0331]
[1728857109822,0.07850651,63162.0,63161.0,0.0331]
[1728857110233,0.20500438,63163.0,63161.0,0.0331]
[1728857110533,0.15772859,63162.0,63161.0,0.0331]
[1728857110724,0.03634701,63162.0,63155.0,0.0037]
[1728857110922,0.03634701,63162.0,63151.0,0.0037]
[1728857110923,0.16,63156.0,63151.0,0.0037]
[1728857111125,0.079195,63151.0,63150.0,0.032]
[1728857111326,0.11554201,63151.0,63150.0,0.032]
[1728857111928,0.55714701,63151.0,63142.0,0.3608]
[1728857112129,0.55714701,63151.0,63129.0,0.0129]
[1728857112130,0.079209,63140.0,63138.0,0.0037]
[1728857112442,0.03634701,63139.0,63137.0,0.440012]
[1728857112634,0.23865279,63150.0,63137.0,0.3608]
[1728857112635,0.03634701,63138.0,63137.0,0.3608]
[1728857112834,0.079212,63137.0,63136.0,0.032]
[1728857113134,0.11555901,63137.0,63133.0,0.079216]
[1728857113338,0.16,63142.0,63133.0,0.079216]
[1728857113339,0.079216,63135.0,63133.0,0.079216]
[1728857113531,0.02234701,63134.0,63129.0,0.440022]
[1728857113720,0.16,63133.0,63129.0,0.3608]
[1728857113924,0.065221,63130.0,63129.0,0.3608]
[1728857114127,0.225221,63130.0,63129.0,0.3608]
[1728857114330,0.211221,63130.0,63129.0,0.3608]
[1728857114730,0.079215,63135.0,63129.0,0.3748]
[1728857114931,0.239215,63135.0,63132.0,0.079218]
[1728857115132,0.079218,63133.0,63129.0,0.3748]
[1728857115336,0.16,63132.0,63129.0,0.3748]
[1728857115525,0.239219,63132.0,63129.0,0.3748]
[1728857115833,0.16,63132.0,63129.0,0.3758]
[1728857116029,0.16,63132.0,63131.0,0.07922]
[1728857116936,0.161,63132.0,63131.0,0.07922]
[1728857117438,0.16,63132.0,63131.0,0.07922]
[1728857117621,0.161,63132.0,63131.0,0.07922]
[1728857118431,0.162,63132.0,63131.0,0.07922]
[1728857118830,0.241218,63132.0,63127.0,0.079224]
[1728857119025,0.16,63128.0,63124.0,0.0308]
[1728857119227,0.07923,63123.0,63119.0,0.0037]
[1728857119535,0.07923,63123.0,63118.0,0.394]
[1728857119536,0.16,63123.0,63118.0,0.36272]
[1728857119834,0.239235,63119.0,63118.0,0.3608]
[1728857120742,0.227235,63119.0,63118.0,0.3608]
[1728857121439,0.228235,63119.0,63118.0,0.3728]
[1728857122436,0.228235,63119.0,63118.0,0.3738]
[1728857122437,0.162,63119.0,63118.0,0.3738]
[1728857122633,0.002,63119.0,63118.0,0.3738]
[1728857122940,0.002,63119.0,63118.0,0.453036]
[1728857123442,0.002,63119.0,63118.0,0.452036]
[1728857123443,0.001,63119.0,63118.0,0.452036]
[1728857123757,0.002,63119.0,63118.0,0.441036]
[1728857125132,0.162,63119.0,63118.0,0.3618]
[1728857125437,0.162,63119.0,63118.0,0.441036]
[1728857125438,0.002,63119.0,63118.0,0.441036]
[1728857126538,0.162,63119.0,63118.0,0.441036]
[1728857130435,0.002,63119.0,63118.0,0.441036]
[1728857130937,0.162,63119.0,63118.0,0.001]
[1728857131136,0.241235,63119.0,63118.0,0.001]
[1728857131443,1.156515,63119.0,63118.0,0.001]
[1728857136334,0.079242,63113.0,63112.0,0.0037]
[1728857136546,0.239243,63113.0,63107.0,0.07925]
[1728857136738,0.079244,63112.0,63107.0,0.07925]
[1728857137141,0.239251,63113.0,63106.0,0.3608]
[1728857137450,0.079253,63111.0,63109.0,0.079255]
[1728857137638,0.16,63113.0,63112.0,0.079252]
[1728857137639,0.002,63113.0,63112.0,0.079252]
[1728857138042,0.002,63113.0,63111.0,0.079252]
[1728857138239,0.001,63113.0,63111.0,0.079252]
[1728857138439,0.002,63113.0,63111.0,0.079252]
[1728857139249,0.079256,63109.0,63106.0,0.3618]
[1728857139445,0.079252,63112.0,63109.0,0.079255]
[1728857140141,0.002,63113.0,63112.0,0.079251]
[1728857140438,0.0037,63125.0,63124.0,0.079236]
[1728857140639,0.08292,63137.0,63125.0,0.079235]
[1728857140843,0.24292,63137.0,63125.0,0.109735]
[1728857141038,0.16,63133.0,63125.0,0.109735]
[1728857141242,0.08292,63137.0,63126.0,0.079234]
[1728857141243,0.0037,63137.0,63126.0,0.079234]
[1728857141441,0.16,63139.0,63135.0,0.079222]
[1728857142352,0.16,63139.0,63130.0,0.3608]
[1728857142547,0.3608,63142.0,63135.0,0.16]
[1728857142851,0.3608,63148.0,63142.0,0.079213]
[1728857142852,0.16,63143.0,63142.0,0.079213]
[1728857143152,0.3608,63148.0,63136.0,0.0037]
[1728857143344,0.00237612,63149.0,63148.0,0.079206]
[1728857143657,0.26813786,63160.0,63158.0,0.079193]
[1728857143658,0.02894586,63160.0,63158.0,0.079193]
[1728857143952,0.02894586,63160.0,63147.0,0.0641]
[1728857143953,0.0037,63164.0,63160.0,0.079191]
[1728857144150,0.0008,63165.0,63163.0,0.079187]
[1728857144343,0.0008,63165.0,63159.0,0.3608]
[1728857144344,0.16,63165.0,63159.0,0.3608]
[1728857144550,0.3608,63169.0,63160.0,0.079191]
[1728857144551,0.16,63161.0,63160.0,0.079191]
[1728857144851,0.16,63166.0,63159.0,0.3608]
[1728857145152,0.16,63166.0,63164.0,0.079185]
[1728857145652,0.006,63165.0,63164.0,0.079185]
[1728857147547,0.007,63165.0,63164.0,0.079185]
[1728857147757,0.001,63165.0,63164.0,0.080185]
[1728857148350,0.002,63165.0,63164.0,0.080185]
[1728857148544,0.03778678,63165.0,63164.0,0.080185]
[1728857152961,0.002,63165.0,63164.0,0.080185]
[1728857153153,0.002,63165.0,63164.0,0.001]
[1728857153660,0.03777546,63165.0,63164.0,0.001]
[1728857155164,0.11696046,63165.0,63164.0,0.001]
[1728857155366,1.63338474,63165.0,63153.0,0.0037]
[1728857155565,1.63338474,63165.0,63145.0,0.3608]
[1728857155566,0.079204,63150.0,63149.0,0.0037]
[1728857155766,0.3608,63155.0,63145.0,0.3608]
[1728857155767,0.079209,63146.0,63145.0,0.3608]
[1728857155968,0.079209,63146.0,63138.0,0.079218]
[1728857156159,0.16,63140.0,63138.0,0.079218]
[1728857156665,0.16,63140.0,63139.0,0.079218]
[1728857157173,0.16,63143.0,63136.0,0.0591748]
[1728857157375,0.16,63143.0,63141.0,0.079215]
[1728857157875,0.16,63143.0,63142.0,0.079214]
[1728857158078,0.3608,63149.0,63146.0,0.079208]
[1728857158266,0.3608,63149.0,63148.0,0.079206]
[1728857158469,0.16,63150.0,63149.0,0.079205]
[1728857158775,0.16,63150.0,63145.0,0.079209]
[1728857158776,0.5208,63150.0,63145.0,0.079209]
[1728857158965,0.16,63146.0,63145.0,0.079209]
[1728857160466,0.16,63146.0,63145.0,0.082209]
[1728857161174,0.161,63146.0,63145.0,0.082209]
[1728857163668,0.161,63146.0,63145.0,0.003]
[1728857163873,0.161,63146.0,63145.0,0.08221]
[1728857165290,0.001,63146.0,63145.0,0.08221]
[1728857166166,0.001,63146.0,63145.0,0.24221]
[1728857166366,0.3631754,63163.0,63159.0,0.079192]
[1728857166568,0.3631754,63163.0,63146.0,0.079208]
[1728857166569,0.3631754,63163.0,63161.0,0.07919]
[1728857166777,0.16,63162.0,63161.0,0.07919]
[1728857167977,0.6808,63162.0,63159.0,0.001]
[1728857168176,0.6808,63162.0,63152.0,0.0037]
[1728857168365,0.6808,63162.0,63147.0,0.0037]
[1728857168366,0.16,63153.0,63147.0,0.0037]
[1728857168570,0.16,63148.0,63146.0,0.079208]
[1728857168877,0.3608,63156.0,63151.0,0.079203]
[1728857168878,0.16,63152.0,63151.0,0.079203]
[1728857169777,0.16,63152.0,63149.0,0.079205]
[1728857169972,0.16,63150.0,63149.0,0.079205]
[1728857170778,0.19449862,63150.0,63149.0,0.079205]
[1728857170982,0.19449862,63150.0,63149.0,0.080205]
[1728857171278,0.03449862,63150.0,63149.0,0.080205]
[1728857171778,0.03749862,63150.0,63149.0,0.080205]
[1728857172875,0.003,63150.0,63149.0,0.080205]
[1728857173083,0.16,63161.0,63160.0,0.079191]
[1728857173286,0.19491506,63161.0,63160.0,0.079191]
[1728857173484,0.23544541,63161.0,63160.0,0.079191]
[1728857174479,0.19491506,63161.0,63160.0,0.079191]
[1728857175488,0.19991506,63161.0,63160.0,0.079191]
[1728857175784,0.24143155,63161.0,63160.0,0.079191]
[1728857176978,0.24043155,63161.0,63160.0,0.079191]
[1728857177183,0.24243155,63161.0,63160.0,0.079191]
[1728857177383,0.20191506,63161.0,63160.0,0.079191]
[1728857177581,0.19691506,63161.0,63160.0,0.079191]
[1728857177780,0.20191506,63161.0,63160.0,0.079191]
[1728857178283,0.24151134,63161.0,63160.0,0.079191]
[1728857178670,0.166,63161.0,63160.0,0.079191]
[1728857178873,0.168,63161.0,63160.0,0.079191]
[1728857179684,0.166,63161.0,63160.0,0.079191]
[1728857180283,0.166,63161.0,63155.0,0.079197]
[1728857180483,0.16,63156.0,63150.0,0.079203]
[1728857180784,0.16,63151.0,63150.0,0.079203]
[1728857180982,0.5208,63151.0,63141.0,0.399514]
[1728857181180,0.16,63145.0,63141.0,0.00192]
[1728857181383,0.16,63145.0,63142.0,0.079214]
[1728857181582,0.16,63145.0,63137.0,0.0306]
[1728857181785,0.16,63138.0,63136.0,0.00196]
[1728857181989,0.079221,63136.0,63133.0,0.079224]
[1728857182179,0.16,63134.0,63133.0,0.079224]
[1728857183875,0.161,63134.0,63133.0,0.092224]
[1728857185291,0.162,63134.0,63133.0,0.104224]
[1728857188289,0.162,63134.0,63133.0,0.025]
[1728857188489,0.241224,63134.0,63133.0,0.025]
[1728857189091,0.241224,63134.0,63107.0,0.00192]
[1728857189092,0.079236,63124.0,63107.0,0.00192]
[1728857189392,0.079249,63114.0,63113.0,0.0037]
[1728857189590,0.079249,63114.0,63105.0,0.38998085]
[1728857189591,0.239249,63114.0,63105.0,0.38998085]
[1728857189793,0.16,63109.0,63105.0,0.38998085]
[1728857190195,0.16,63109.0,63108.0,0.079256]
[1728857190394,0.147,63109.0,63108.0,0.079256]
[1728857190599,0.143,63109.0,63108.0,0.079256]
[1728857191790,0.144,63109.0,63108.0,0.083256]
[1728857192500,0.145,63109.0,63108.0,0.004]
[1728857192992,0.145,63109.0,63108.0,0.083256]
[1728857195692,0.145,63109.0,63108.0,0.004]
[1728857195693,0.224255,63109.0,63108.0,0.004]
[1728857198088,1.476615,63109.0,63108.0,0.004]
[1728857198302,1.316615,63109.0,63108.0,0.004]
[1728857198804,1.316615,63109.0,63090.0,0.3203]
[1728857198805,0.4754,63108.0,63083.0,0.3608]
[1728857199103,0.4754,63108.0,63065.0,0.07931]
[1728857199104,0.079299,63074.0,63070.0,0.008]
[1728857199404,0.079299,63074.0,63060.0,0.3608]
[1728857199405,0.5208,63071.0,63065.0,0.079309]
[1728857199603,0.16,63066.0,63065.0,0.079309]
[1728857200299,0.32,63066.0,63052.0,0.36272]
[1728857200496,0.16,63053.0,63052.0,0.3608]
[1728857200695,0.16,63053.0,63052.0,0.440127]
[1728857200906,0.1203121,63053.0,63052.0,0.440127]
[1728857201205,0.3608,63063.0,63052.0,0.440127]
[1728857201206,0.16,63057.0,63052.0,0.440127]
[1728857201397,0.00437926,63066.0,63064.0,0.079312]
[1728857201603,0.00437926,63066.0,63058.0,0.3608]
[1728857202200,0.00437926,63066.0,63065.0,0.079311]
[1728857202599,0.16437926,63066.0,63065.0,0.079311]
[1728857203104,0.16337926,63066.0,63065.0,0.079311]
[1728857204003,0.16337926,63066.0,63058.0,0.3608]
[1728857204004,0.079311,63065.0,63060.0,0.079316]
[1728857204309,0.16,63061.0,63060.0,0.079316]
[1728857205394,0.16,63061.0,63044.0,0.3203]